[Event "SVK ECo-C Extraliga 2018-19"]
[Site "Slovakia"]
[Date "2018.11.10"]
[Round "1"]
[White "Balog, Imre"]
[Black "Grubisic, Ilija"]
[Result "1-0"]
[ECO "A45"]
[WhiteElo "2559"]
[BlackElo "2370"]
[Annotator "ChessBase"]
[PlyCount "83"]
[EventDate "2018.11.10"]
[EventType "team-tourn"]
[EventCountry "SVK"]
[SourceTitle "playchess.com"]
[Source "ChessBase"]
[SourceQuality "1"]
[WhiteTeam "Podhajska"]
[BlackTeam "Slovan"]
[TimeControl "40/5400+30:1800+30"]

1. d4 {[%emt 0:00:00]} Nf6 {[%emt 0:00:00]} 2. Bg5 {[%emt 0:00:00]} c5 {[%emt 0:00:08]} 3. d5 {[%emt 0:00:06]} d6 {[%emt 0:02:19]} 4. Nc3 {[%emt 0:00:42]} g6 {[%emt 0:00:48]} 5. e4 {[%emt 0:00:21]} Bg7 {[%emt 0:00:15]} 6. Bb5+ {[%emt 0:00:46]} Nbd7 {[%emt 0:00:56]} 7. a4 {[%emt 0:00:14]} h6 {[%emt 0:03:22]} 8. Be3 {[%emt 0:00:23]} O-O {[%emt 0:00:15]} 9. h3 {[%emt 0:00:53]} Ne8 {[%emt 0:09:38]} 10. Nf3 {[%emt 0:01:54]} a6 {[%emt 0:07:16]} 11. Be2 {[%emt 0:00:37]} Qa5 {[%emt 0:03:26]} 12. O-O {[%emt 0:01:08]} Qb4 {[%emt 0:09:37]} 13. Qc1 {[%emt 0:07:09]} Kh7 {[%emt 0:03:59]} 14. Nd2 {[%emt 0:03:25]} Qb6 {[%emt 0:08:44]} 15. Nc4 {[%emt 0:01:21]} Qc7 {[%emt 0:00:07]} 16. Qd2 {[%emt 0:06:11]} b6 {[%emt 0:02:47]} 17. f4 {[%emt 0:03:43]} Bb7 {[%emt 0:05:05]} 18. Bf3 {[%emt 0:00:58]} Rd8 {[%emt 0:00:44]} 19. Kh1 {[%emt 0:01:39]} e6 {[%emt 0:09:02]} 20. Rad1 {[%emt 0:02:13]} Bxc3 {[%emt 0:03:22]} 21. bxc3 {[%emt 0:01:40]} exd5 {[%emt 0:00:13]} 22. exd5 {[%emt 0:00:07]} f5 {[%emt 0:01:05]} 23. Rb1 {[%emt 0:03:35]} Nef6 {[%emt 0:04:43]} 24. Bf2 {[%emt 0:01:14]} Rde8 {[%emt 0:02:42]} 25. Rfe1 {[%emt 0:00:39]} Rxe1+ {[%emt 0:10:34]} 26. Rxe1 {[%emt 0:01:10]} Re8 {[%emt 0:00:05]} 27. Bh4 {[%emt 0:04:44]} b5 {[%emt 0:02:57]} 28. Rxe8 {[%emt 0:02:11]} Nxe8 {[%emt 0:00:08]} 29. axb5 {[%emt 0:00:05]} axb5 {[%emt 0:00:31]} 30. Na3 {[%emt 0:00:07]} Nb6 {[%emt 0:03:21]} 31. Nxb5 Qf7 {[%emt 0:01:01]} 32. c4 {[%emt 0:08:37]} Nxc4 {[%emt 0:00:14]} 33. Qe2 {[%emt 0:02:10]} Nb6 {[%emt 0:00:14]} 34. c4 {[%emt 0:00:36]} Nc8 {[%emt 0:02:47]} 35. Qa2 {[%emt 0:03:28]} Nc7 {[%emt 0:02:55]} 36. Qa5 {[%emt 0:00:52]} Nxb5 {[%emt 0:02:06]} 37. Qxb5 {[%emt 0:00:06]} Kg7 {[%emt 0:00:31]} 38. Bd1 {[%emt 0:00:14]} Kf8 {[%emt 0:00:24]} 39. Ba4 {[%emt 0:00:17]} Na7 {[%emt 0:00:37]} 40. Qb6 {[%emt 0:00:34]} Nc8 {[%emt 0:00:06]} 41. Qd8+ {[%emt 0:30:05]} Kg7 {[%emt 0:30:12]} 42. Be8 {[%emt 0:00:22]} 1-0

[Event "SVK ECo-C Extraliga 2018-19"]
[Site "Slovakia"]
[Date "2018.11.10"]
[Round "1"]
[White "Zilka, Stepan"]
[Black "Mazur, Stefan"]
[Result "1/2-1/2"]
[ECO "C50"]
[WhiteElo "2530"]
[BlackElo "2413"]
[Annotator "ChessBase"]
[PlyCount "92"]
[EventDate "2018.11.10"]
[EventType "team-tourn"]
[EventCountry "SVK"]
[SourceTitle "playchess.com"]
[Source "ChessBase"]
[SourceQuality "1"]
[WhiteTeam "Prakovce"]
[BlackTeam "Liptovska"]
[TimeControl "40/5400+30:1800+30"]

1. e4 {[%emt 0:00:00]} e5 {[%emt 0:00:00]} 2. Nf3 {[%emt 0:00:00]} Nc6 {[%emt 0:00:00]} 3. Bc4 {[%emt 0:00:00]} Nf6 {[%emt 0:00:00]} 4. d3 {[%emt 0:00:06]} Bc5 {[%emt 0:02:06]} 5. O-O {[%emt 0:01:17]} d6 {[%emt 0:02:14]} 6. c3 {[%emt 0:00:46]} h6 {[%emt 0:02:20]} 7. Nbd2 {[%emt 0:03:04]} a5 {[%emt 0:05:17]} 8. Re1 {[%emt 0:08:45]} O-O {[%emt 0:01:33]} 9. Nf1 {[%emt 0:01:31]} a4 {[%emt 0:12:49]} 10. Bb5 {[%emt 0:06:55]} a3 {[%emt 0:01:09]} 11. b4 {[%emt 0:01:50]} Bb6 {[%emt 0:00:05]} 12. h3 {[%emt 0:03:26]} Ne7 {[%emt 0:06:22]} 13. Ng3 {[%emt 0:12:44]} Ng6 {[%emt 0:02:24]} 14. d4 {[%emt 0:00:37]} c6 {[%emt 0:04:30]} 15. Bf1 {[%emt 0:04:20]} Re8 {[%emt 0:01:28]} 16. Be3 {[%emt 0:08:27]} exd4 {[%emt 0:08:35]} 17. Bxd4 {[%emt 0:00:06]} c5 {[%emt 0:00:39]} 18. Be3 {[%emt 0:07:57]} Nxe4 {[%emt 0:13:49]} 19. Nxe4 {[%emt 0:00:11]} Rxe4 {[%emt 0:00:07]} 20. bxc5 {[%emt 0:02:17]} dxc5 {[%emt 0:00:33]} 21. Qxd8+ {[%emt 0:01:25]} Bxd8 {[%emt 0:01:48]} 22. Bd3 {[%emt 0:00:13]} Re6 {[%emt 0:08:08]} 23. Bxc5 {[%emt 0:08:05]} Nf4 {[%emt 0:06:01]} 24. Bc4 {[%emt 0:02:17]} Rxe1+ {[%emt 0:01:01]} 25. Rxe1 {[%emt 0:00:37]} Be6 {[%emt 0:00:10]} 26. Bxe6 {[%emt 0:01:21]} Nxe6 {[%emt 0:00:22]} 27. Bb4 {[%emt 0:00:06]} Ba5 {[%emt 0:02:42]} 28. Bxa5 {[%emt 0:09:10]} Rxa5 {[%emt 0:00:08]} 29. Rb1 {[%emt 0:00:36]} Nc5 {[%emt 0:07:40]} 30. Nd4 {[%emt 0:00:09]} Kf8 {[%emt 0:03:42]} 31. Rb5 {[%emt 0:01:43]} Rxb5 {[%emt 0:01:43]} 32. Nxb5 {[%emt 0:00:07]} Nb3 {[%emt 0:01:38]} 33. Nxa3 {[%emt 0:03:45]} Nc1 {[%emt 0:00:05]} 34. Nb5 {[%emt 0:00:39]} Nxa2 {[%emt 0:00:08]} 35. Kf1 {[%emt 0:00:09]} Ke7 {[%emt 0:00:47]} 36. Ke2 {[%emt 0:01:24]} Nc1+ {[%emt 0:01:17]} 37. Ke3 {[%emt 0:00:11]} Nb3 {[%emt 0:02:38]} 38. g4 {[%emt 0:01:03]} Ke6 {[%emt 0:01:12]} 39. f4 {[%emt 0:01:55]} Kd5 {[%emt 0:01:07]} 40. h4 {[%emt 0:03:11]} Nc5 {[%emt 0:01:00]} 41. h5 {[%emt 0:32:54]} Ne6 {[%emt 0:12:21]} 42. f5 {[%emt 0:00:00]} Ng5 {[%emt 0:01:21]} 43. Kf4 {[%emt 0:00:00]} Nh3+ {[%emt 0:02:23]} 44. Kg3 {[%emt 0:00:00]} Ng5 {[%emt 0:00:07]} 45. Kf4 {[%emt 0:00:00]} Nh3+ {[%emt 0:05:00]} 46. Kg3 {[%emt 0:00:00]} Ng5 {[%emt 0:00:03]} 1/2-1/2

[Event "SVK ECo-C Extraliga 2018-19"]
[Site "Slovakia"]
[Date "2018.11.10"]
[Round "1"]
[White "Cvek, Robert"]
[Black "Cernousek, Lukas"]
[Result "1-0"]
[ECO "A05"]
[WhiteElo "2515"]
[BlackElo "2436"]
[Annotator "ChessBase"]
[PlyCount "53"]
[EventDate "2018.11.10"]
[EventType "team-tourn"]
[EventCountry "SVK"]
[SourceTitle "playchess.com"]
[Source "ChessBase"]
[SourceQuality "1"]
[WhiteTeam "Osuske"]
[BlackTeam "Dubnica"]
[TimeControl "40/5400+30:1800+30"]

1. Nf3 {[%emt 0:00:00]} Nf6 {[%emt 0:00:00]} 2. c4 {[%emt 0:00:00]} c5 {[%emt 0:00:00]} 3. g3 {[%emt 0:03:54]} d5 {[%emt 0:00:00]} 4. cxd5 {[%emt 0:00:31]} Nxd5 {[%emt 0:00:00]} 5. Bg2 {[%emt 0:00:18]} Nc6 {[%emt 0:05:08]} 6. d4 {[%emt 0:11:39]} cxd4 {[%emt 0:00:41]} 7. Nxd4 {[%emt 0:00:13]} Ndb4 {[%emt 0:00:13]} 8. Nxc6 {[%emt 0:00:18]} Qxd1+ {[%emt 0:00:11]} 9. Kxd1 {[%emt 0:00:06]} Nxc6 {[%emt 0:00:08]} 10. Bxc6+ {[%emt 0:00:05]} bxc6 {[%emt 0:00:05]} 11. Nc3 {[%emt 0:01:06]} e5 {[%emt 0:04:08]} 12. Be3 {[%emt 0:04:44]} Bf5 {[%emt 0:17:07]} 13. f3 {[%emt 0:04:31]} Bb4 {[%emt 0:06:01]} 14. Rc1 {[%emt 0:10:29]} O-O {[%emt 0:02:04]} 15. a3 {[%emt 0:01:43]} Ba5 {[%emt 0:11:59]} 16. Ke1 {[%emt 0:08:44]} Rfb8 {[%emt 0:04:44]} 17. b4 {[%emt 0:02:43]} Bb6 {[%emt 0:08:52]} 18. Bxb6 {[%emt 0:08:50]} Rxb6 {[%emt 0:18:30]} 19. g4 {[%emt 0:08:02]} Bg6 {[%emt 0:00:55]} 20. Kf2 {[%emt 0:00:16]} a5 {[%emt 0:00:30]} 21. bxa5 {[%emt 0:04:07]} Rxa5 {[%emt 0:00:19]} 22. a4 {[%emt 0:02:19]} Kf8 {[%emt 0:03:08]} 23. h4 {[%emt 0:05:23]} f6 {[%emt 0:01:25]} 24. h5 {[%emt 0:00:05]} Bf7 {[%emt 0:00:21]} 25. Rb1 {[%emt 0:01:34]} Bb3 {[%emt 0:03:50]} 26. Ne4 {[%emt 0:03:31]} Rd5 {[%emt 0:00:06]} 27. Rhc1 {[%emt 0:01:06]} 1-0

[Event "SVK ECo-C Extraliga 2018-19"]
[Site "Slovakia"]
[Date "2018.11.10"]
[Round "1"]
[White "Petrik, Tomas"]
[Black "Holtman, Teodor"]
[Result "1/2-1/2"]
[ECO "C04"]
[WhiteElo "2476"]
[BlackElo "2234"]
[Annotator "ChessBase"]
[PlyCount "142"]
[EventDate "2018.11.10"]
[EventType "team-tourn"]
[EventCountry "SVK"]
[SourceTitle "playchess.com"]
[Source "ChessBase"]
[SourceQuality "1"]
[WhiteTeam "Zilina"]
[BlackTeam "Snina"]
[TimeControl "40/5400+30:1800+30"]

1. e4 {[%emt 0:00:00]} e6 {[%emt 0:00:00]} 2. d4 {[%emt 0:01:33]} d5 {[%emt 0:00:00]} 3. Nd2 {[%emt 0:00:52]} Nc6 {[%emt 0:00:24]} 4. Ngf3 {[%emt 0:02:44]} Nf6 {[%emt 0:00:18]} 5. e5 {[%emt 0:00:29]} Nd7 {[%emt 0:00:08]} 6. Be2 {[%emt 0:01:44]} Be7 {[%emt 0:00:12]} 7. Nf1 {[%emt 0:15:51]} O-O {[%emt 0:00:24]} 8. Ne3 {[%emt 0:03:06]} f6 {[%emt 0:00:28]} 9. exf6 {[%emt 0:00:21]} Nxf6 {[%emt 0:00:24]} 10. O-O {[%emt 0:00:34]} Bd6 {[%emt 0:00:58]} 11. c4 {[%emt 0:06:27]} b6 {[%emt 0:00:47]} 12. b3 {[%emt 0:05:11]} Bf4 {[%emt 0:06:47]} 13. Nc2 {[%emt 0:18:23]} Ne4 {[%emt 0:06:10]} 14. Bd3 {[%emt 0:07:47]} Bb7 {[%emt 0:15:26]} 15. Qe2 {[%emt 0:06:40]} Qe8 {[%emt 0:18:08]} 16. Bxf4 {[%emt 0:14:41]} Rxf4 {[%emt 0:00:02]} 17. cxd5 {[%emt 0:00:13]} exd5 {[%emt 0:01:45]} 18. Ne3 {[%emt 0:01:50]} Nd6 {[%emt 0:17:47]} 19. Nxd5 {[%emt 0:05:33]} Qxe2 {[%emt 0:09:15]} 20. Bxe2 {[%emt 0:00:02]} Rf7 {[%emt 0:00:56]} 21. Rad1 {[%emt 0:03:05]} Nd8 {[%emt 0:05:08]} 22. Ne3 {[%emt 0:00:17]} Ne6 {[%emt 0:01:31]} 23. Ne5 {[%emt 0:00:39]} Rf4 {[%emt 0:03:45]} 24. d5 {[%emt 0:01:56]} Re4 {[%emt 0:04:20]} 25. dxe6 {[%emt 0:01:37]} Rxe5 {[%emt 0:00:03]} 26. Bg4 {[%emt 0:00:14]} h5 {[%emt 0:00:54]} 27. Bh3 {[%emt 0:00:44]} g5 {[%emt 0:00:25]} 28. g3 {[%emt 0:00:12]} Re8 {[%emt 0:02:37]} 29. Rc1 {[%emt 0:00:48]} g4 {[%emt 0:01:44]} 30. Bg2 {[%emt 0:00:04]} Bxg2 {[%emt 0:00:06]} 31. Kxg2 {[%emt 0:00:22]} c5 {[%emt 0:00:15]} 32. h3 {[%emt 0:01:17]} gxh3+ {[%emt 0:00:49]} 33. Kxh3 {[%emt 0:00:02]} R8xe6 {[%emt 0:00:13]} 34. Rcd1 {[%emt 0:00:15]} Ne4 {[%emt 0:01:36]} 35. Nc4 {[%emt 0:00:13]} Rf5 {[%emt 0:02:24]} 36. Kg2 {[%emt 0:00:07]} Ref6 {[%emt 0:00:16]} 37. f3 {[%emt 0:00:30]} Nc3 {[%emt 0:00:42]} 38. Rd2 {[%emt 0:01:12]} Rd5 {[%emt 0:01:18]} 39. Rxd5 {[%emt 0:01:19]} Nxd5 {[%emt 0:00:02]} 40. Re1 {[%emt 0:00:33]} Nb4 {[%emt 0:00:40]} 41. Re8+ {[%emt 0:18:11]} Kg7 {[%emt 0:06:02]} 42. Ne5 {[%emt 0:06:04]} Nxa2 {[%emt 0:00:50]} 43. Re7+ {[%emt 0:00:05]} Kg8 {[%emt 0:00:27]} 44. Kh3 {[%emt 0:03:27]} Nc1 {[%emt 0:02:15]} 45. Kh4 {[%emt 0:00:07]} Rf5 {[%emt 0:03:38]} 46. f4 {[%emt 0:00:04]} Nxb3 {[%emt 0:00:57]} 47. Rxa7 {[%emt 0:00:06]} Nd4 {[%emt 0:00:47]} 48. Rc7 {[%emt 0:01:12]} b5 {[%emt 0:05:44]} 49. Ng6 {[%emt 0:03:20]} Ne6 {[%emt 0:04:48]} 50. Rb7 {[%emt 0:00:57]} Rf7 {[%emt 0:02:05]} 51. Rxb5 {[%emt 0:00:06]} Rc7 {[%emt 0:02:13]} 52. Kxh5 {[%emt 0:02:19]} c4 {[%emt 0:00:13]} 53. Ne5 {[%emt 0:00:29]} c3 {[%emt 0:00:08]} 54. Nd3 {[%emt 0:00:34]} c2 {[%emt 0:01:49]} 55. Nc1 {[%emt 0:00:04]} Rh7+ {[%emt 0:00:57]} 56. Kg4 {[%emt 0:00:50]} Rh1 {[%emt 0:00:49]} 57. Nd3 {[%emt 0:00:18]} Rd1 {[%emt 0:01:04]} 58. Rb8+ {[%emt 0:00:40]} Kg7 {[%emt 0:00:01]} 59. Rb7+ {[%emt 0:00:39]} Kf8 {[%emt 0:00:18]} 60. Rb8+ {[%emt 0:00:25]} Ke7 {[%emt 0:00:10]} 61. Rb7+ {[%emt 0:00:34]} Kd8 {[%emt 0:01:12]} 62. Rb3 {[%emt 0:00:27]} Nd4 {[%emt 0:01:05]} 63. Rc3 {[%emt 0:00:11]} Ke7 {[%emt 0:01:17]} 64. Rc7+ {[%emt 0:00:44]} Kf6 {[%emt 0:00:28]} 65. Rc3 {[%emt 0:00:29]} Rxd3 {[%emt 0:03:11]} 66. Rxd3 {[%emt 0:00:05]} c1=Q {[%emt 0:00:06]} 67. Rxd4 {[%emt 0:00:03]} Qc8+ {[%emt 0:00:14]} 68. Kh4 {[%emt 0:00:03]} Qh8+ {[%emt 0:00:58]} 69. Kg4 {[%emt 0:00:01]} Qc8+ {[%emt 0:00:17]} 70. Kh4 {[%emt 0:00:05]} Qh8+ {[%emt 0:01:12]} 71. Kg4 {[%emt 0:00:03]} Qc8+ 1/2-1/2

[Event "SVK ECo-C Extraliga 2018-19"]
[Site "Slovakia"]
[Date "2018.11.10"]
[Round "1"]
[White "Pacher, Milan"]
[Black "Aczel, Gergely"]
[Result "0-1"]
[ECO "B90"]
[WhiteElo "2453"]
[BlackElo "2549"]
[Annotator "ChessBase"]
[PlyCount "108"]
[EventDate "2018.11.10"]
[EventType "team-tourn"]
[EventCountry "SVK"]
[SourceTitle "playchess.com"]
[Source "ChessBase"]
[SourceQuality "1"]
[WhiteTeam "Slovan"]
[BlackTeam "Podhajska"]
[TimeControl "40/5400+30:1800+30"]

1. e4 {[%emt 0:00:00]} c5 {[%emt 0:00:00]} 2. Nf3 {[%emt 0:00:00]} d6 {[%emt 0:00:00]} 3. d4 {[%emt 0:00:59]} cxd4 {[%emt 0:00:00]} 4. Nxd4 {[%emt 0:00:05]} Nf6 {[%emt 0:00:00]} 5. Nc3 {[%emt 0:00:03]} a6 {[%emt 0:00:00]} 6. Be3 {[%emt 0:00:52]} e5 {[%emt 0:00:03]} 7. Nf3 {[%emt 0:00:27]} Qc7 {[%emt 0:00:14]} 8. a4 {[%emt 0:00:14]} Be7 {[%emt 0:04:38]} 9. Be2 {[%emt 0:00:53]} b6 {[%emt 0:07:28]} 10. O-O {[%emt 0:00:51]} O-O {[%emt 0:00:26]} 11. Nd2 {[%emt 0:02:41]} Be6 {[%emt 0:18:59]} 12. Bf3 {[%emt 0:01:26]} Nc6 {[%emt 0:16:06]} 13. Nd5 {[%emt 0:05:54]} Bxd5 {[%emt 0:00:11]} 14. exd5 {[%emt 0:00:03]} Nb4 {[%emt 0:02:13]} 15. c4 {[%emt 0:00:35]} a5 {[%emt 0:05:08]} 16. b3 {[%emt 0:01:30]} Nd7 {[%emt 0:00:22]} 17. Ne4 {[%emt 0:01:33]} Qd8 {[%emt 0:01:51]} 18. g4 {[%emt 0:12:35]} Na6 {[%emt 0:00:54]} 19. Ng3 {[%emt 0:02:31]} Nac5 {[%emt 0:04:28]} 20. Bg2 {[%emt 0:02:53]} Re8 {[%emt 0:08:29]} 21. Ra2 {[%emt 0:03:41]} Nf8 {[%emt 0:01:17]} 22. f4 {[%emt 0:03:47]} exf4 {[%emt 0:01:54]} 23. Bxf4 {[%emt 0:00:37]} Ng6 {[%emt 0:01:23]} 24. Bc1 {[%emt 0:02:01]} Bg5 {[%emt 0:03:04]} 25. Nf5 {[%emt 0:03:21]} Bxc1 {[%emt 0:07:10]} 26. Qxc1 {[%emt 0:00:03]} Nh4 {[%emt 0:00:15]} 27. Nd4 {[%emt 0:08:07]} Qe7 {[%emt 0:00:03]} 28. Re2 {[%emt 0:01:46]} Qd7 {[%emt 0:00:02]} 29. Rxe8+ {[%emt 0:04:01]} Rxe8 {[%emt 0:00:02]} 30. Qg5 {[%emt 0:02:25]} Nxg2 {[%emt 0:02:22]} 31. Kxg2 {[%emt 0:00:12]} h6 {[%emt 0:00:14]} 32. Qf5 {[%emt 0:00:45]} Qe7 {[%emt 0:02:10]} 33. h3 {[%emt 0:04:40]} f6 {[%emt 0:04:41]} 34. Qg6 {[%emt 0:08:57]} Qe4+ {[%emt 0:00:09]} 35. Qxe4 {[%emt 0:00:04]} Rxe4 {[%emt 0:00:03]} 36. Nf5 {[%emt 0:00:18]} Re2+ {[%emt 0:00:58]} 37. Rf2 {[%emt 0:07:45]} Rxf2+ {[%emt 0:00:33]} 38. Kxf2 {[%emt 0:00:02]} Nxb3 {[%emt 0:00:07]} 39. Nxd6 {[%emt 0:00:12]} Nc5 {[%emt 0:00:07]} 40. Nc8 {[%emt 0:01:15]} Nxa4 {[%emt 0:01:25]} 41. d6 {[%emt 0:30:30]} Nc5 {[%emt 0:30:16]} 42. Nxb6 {[%emt 0:00:41]} Kf7 {[%emt 0:00:00]} 43. Ke3 {[%emt 0:00:00]} a4 {[%emt 0:00:00]} 44. Kd2 {[%emt 0:00:00]} Ke6 {[%emt 0:00:00]} 45. d7 {[%emt 0:00:00]} Ke7 {[%emt 0:00:00]} 46. Kc2 {[%emt 0:00:00]} Kd8 {[%emt 0:00:00]} 47. Kb2 {[%emt 0:00:00]} g6 {[%emt 0:00:00]} 48. Nd5 {[%emt 0:00:00]} f5 {[%emt 0:00:00]} 49. gxf5 {[%emt 0:00:00]} gxf5 {[%emt 0:00:00]} 50. Ka3 {[%emt 0:00:00]} Kxd7 {[%emt 0:00:00]} 51. Kb4 {[%emt 0:00:00]} Kd6 {[%emt 0:00:29]} 52. Ne3 {[%emt 0:00:00]} f4 {[%emt 0:05:35]} 53. Nf5+ {[%emt 0:00:00]} Ke5 {[%emt 0:03:25]} 54. Nxh6 {[%emt 0:00:00]} f3 {[%emt 0:00:16]} 0-1

[Event "SVK ECo-C Extraliga 2018-19"]
[Site "Slovakia"]
[Date "2018.11.10"]
[Round "1"]
[White "Czebe, Attila"]
[Black "Molnar, Erno"]
[Result "1-0"]
[ECO "A05"]
[WhiteElo "2401"]
[BlackElo "2233"]
[Annotator "ChessBase"]
[PlyCount "61"]
[EventDate "2018.11.10"]
[EventType "team-tourn"]
[EventCountry "SVK"]
[SourceTitle "playchess.com"]
[Source "ChessBase"]
[SourceQuality "1"]
[WhiteTeam "Streda"]
[BlackTeam "Komarno"]
[TimeControl "40/5400+30:1800+30"]

1. Nf3 {[%emt 0:00:00]} Nf6 {[%emt 0:00:00]} 2. g3 {[%emt 0:00:00]} g6 {[%emt 0:00:00]} 3. b3 {[%emt 0:00:22]} Bg7 {[%emt 0:04:10]} 4. Bb2 {[%emt 0:00:12]} d5 {[%emt 0:01:17]} 5. Bg2 {[%emt 0:00:08]} O-O {[%emt 0:00:49]} 6. O-O {[%emt 0:00:06]} c6 {[%emt 0:03:58]} 7. d3 {[%emt 0:00:11]} Nbd7 {[%emt 0:03:31]} 8. Nbd2 {[%emt 0:00:43]} Qc7 {[%emt 0:08:34]} 9. e4 {[%emt 0:01:42]} e5 {[%emt 0:07:08]} 10. Re1 {[%emt 0:03:41]} dxe4 {[%emt 0:08:40]} 11. dxe4 {[%emt 0:01:23]} Re8 {[%emt 0:06:57]} 12. Nc4 {[%emt 0:00:36]} Bf8 {[%emt 0:02:15]} 13. a4 {[%emt 0:07:42]} b6 {[%emt 0:03:59]} 14. Qd2 {[%emt 0:06:06]} Ba6 {[%emt 0:04:51]} 15. Ncxe5 {[%emt 0:01:09]} Rxe5 {[%emt 0:16:13]} 16. Nxe5 {[%emt 0:03:04]} Nxe5 {[%emt 0:01:14]} 17. Qf4 {[%emt 0:07:22]} Nfd7 {[%emt 0:00:41]} 18. Rad1 {[%emt 0:04:45]} Bd6 {[%emt 0:04:22]} 19. Qd2 {[%emt 0:01:34]} Be7 {[%emt 0:04:06]} 20. f4 {[%emt 0:23:36]} Bc5+ {[%emt 0:07:00]} 21. Bd4 {[%emt 0:00:17]} Ng4 {[%emt 0:00:59]} 22. h3 {[%emt 0:04:24]} Ngf6 {[%emt 0:03:05]} 23. e5 {[%emt 0:05:50]} Ne8 {[%emt 0:02:53]} 24. e6 {[%emt 0:01:17]} fxe6 {[%emt 0:02:03]} 25. Rxe6 {[%emt 0:00:16]} Bb7 {[%emt 0:01:04]} 26. Qe2 {[%emt 0:05:03]} Ng7 {[%emt 0:02:14]} 27. Bxc5 {[%emt 0:02:53]} Nxc5 {[%emt 0:00:28]} 28. Re7 {[%emt 0:00:05]} Ba6 {[%emt 0:00:24]} 29. Qe1 {[%emt 0:02:22]} Qc8 {[%emt 0:00:28]} 30. b4 {[%emt 0:00:21]} Nxa4 {[%emt 0:00:51]} 31. Rdd7 {[%emt 0:00:29]} 1-0

[Event "SVK ECo-C Extraliga 2018-19"]
[Site "Slovakia"]
[Date "2018.11.10"]
[Round "1"]
[White "Hrabusa, Matej"]
[Black "Leniart, Arkadiusz"]
[Result "1/2-1/2"]
[ECO "D00"]
[WhiteElo "2398"]
[BlackElo "2505"]
[Annotator "ChessBase"]
[PlyCount "86"]
[EventDate "2018.11.10"]
[EventType "team-tourn"]
[EventCountry "SVK"]
[SourceTitle "playchess.com"]
[Source "ChessBase"]
[SourceQuality "1"]
[WhiteTeam "Liptovska"]
[BlackTeam "Prakovce"]
[TimeControl "40/5400+30:1800+30"]

1. d4 {[%emt 0:00:00]} d5 {[%emt 0:00:00]} 2. Bf4 {[%emt 0:00:03]} Nf6 {[%emt 0:00:00]} 3. e3 {[%emt 0:00:19]} c5 {[%emt 0:00:41]} 4. c3 {[%emt 0:00:05]} Nc6 {[%emt 0:00:16]} 5. Nd2 {[%emt 0:00:09]} g6 {[%emt 0:04:58]} 6. dxc5 {[%emt 0:05:36]} e5 {[%emt 0:03:20]} 7. Bg3 {[%emt 0:01:55]} Nh5 {[%emt 0:10:31]} 8. Nb3 {[%emt 0:04:57]} Bg7 {[%emt 0:04:21]} 9. Be2 {[%emt 0:04:47]} Nxg3 {[%emt 0:00:09]} 10. hxg3 {[%emt 0:00:11]} Be6 {[%emt 0:00:34]} 11. Nf3 {[%emt 0:04:22]} O-O {[%emt 0:00:26]} 12. Qc2 {[%emt 0:06:56]} a5 {[%emt 0:02:44]} 13. a4 {[%emt 0:00:56]} Qe7 {[%emt 0:00:24]} 14. Rd1 {[%emt 0:02:46]} Rfd8 {[%emt 0:04:11]} 15. O-O {[%emt 0:02:38]} h5 {[%emt 0:06:08]} 16. Rfe1 {[%emt 0:03:49]} Bf6 {[%emt 0:22:57]} 17. Bb5 {[%emt 0:02:25]} Bf5 {[%emt 0:13:26]} 18. Qc1 {[%emt 0:03:16]} Bg4 {[%emt 0:02:54]} 19. c4 {[%emt 0:07:31]} dxc4 {[%emt 0:08:48]} 20. Rxd8+ {[%emt 0:01:55]} Rxd8 {[%emt 0:00:08]} 21. Qxc4 {[%emt 0:01:16]} Be6 {[%emt 0:00:47]} 22. Qc3 {[%emt 0:04:23]} e4 {[%emt 0:02:03]} 23. Nfd4 {[%emt 0:00:13]} Bxb3 {[%emt 0:00:13]} 24. Bxc6 {[%emt 0:01:20]} bxc6 {[%emt 0:00:10]} 25. Qxb3 {[%emt 0:00:06]} Qxc5 {[%emt 0:00:31]} 26. Ne2 {[%emt 0:03:35]} Rd2 {[%emt 0:03:13]} 27. Nc3 {[%emt 0:03:31]} Bxc3 {[%emt 0:01:22]} 28. bxc3 {[%emt 0:01:10]} Kg7 {[%emt 0:00:52]} 29. Rc1 {[%emt 0:01:19]} Qf5 {[%emt 0:00:20]} 30. Rf1 {[%emt 0:00:07]} Qc5 {[%emt 0:00:43]} 31. Rc1 {[%emt 0:00:31]} Qf5 {[%emt 0:00:04]} 32. Rf1 {[%emt 0:00:06]} Qd5 {[%emt 0:00:27]} 33. c4 {[%emt 0:02:14]} Qd3 {[%emt 0:00:19]} 34. Qb6 {[%emt 0:00:35]} Rd1 {[%emt 0:04:25]} 35. Rxd1 {[%emt 0:00:07]} Qxd1+ {[%emt 0:00:05]} 36. Kh2 {[%emt 0:00:04]} Qxa4 {[%emt 0:00:19]} 37. Qd4+ {[%emt 0:00:36]} Kg8 {[%emt 0:00:38]} 38. Qxe4 {[%emt 0:00:30]} c5 {[%emt 0:00:09]} 39. f4 {[%emt 0:00:59]} Qb4 {[%emt 0:00:50]} 40. f5 {[%emt 0:03:56]} gxf5 {[%emt 0:00:23]} 41. Qxf5 {[%emt 0:30:07]} Qxc4 {[%emt 0:31:31]} 42. Qg5+ {[%emt 0:00:07]} Kf8 {[%emt 0:00:05]} 43. Qd8+ {[%emt 0:00:07]} Kg7 {[%emt 0:00:06]} 1/2-1/2